Cogmind - Beta 10.1 @@@ ROGUE MODE // 2020.10.25 @ 17:26:12 Player: Joking_Phantom Result: Self-destructed Performance ------------- Evolutions (0) 0 Regions Visited (4) 800 Robots Destroyed (9) 45 Value Destroyed (218) 218 Prototype IDs (23) 460 Alien Tech Used (0) 0 Bonus (300) 300 TOTAL SCORE: 1823 Bonus ------- Aligned with FarCom 300 Cogmind --------- Core Integrity 171/250 Matter 300/300 Energy 100/100 System Corruption 0% Temperature Cool (0) Movement Rolling (120) Ox2 Location -9/Mines Parts ------- > --- POWER (1) -------- (None) > --- PROPULSION (2) --- Compact Wheel > --- UTILITY (2) ------ Medium Storage Unit High-capacity Storage Unit > --- WEAPON (2) ------- (None) > --- INVENTORY (16) --- Light Ion Engine Light Treads Light Treads Compact Wheel Flying Fortress v7 High-capacity Battery (400) Skeleton Box Medium Laser Assault Rifle XL Autogun Array Peak State ------------ > --- POWER ------------ Light Ion Engine > --- PROPULSION ------- Wheel Compact Wheel > --- UTILITY ---------- Medium Storage Unit High-capacity Storage Unit > --- WEAPON ----------- Assault Rifle Rocket Launcher > --- INVENTORY -------- Light Ion Engine Light Treads Light Treads Compact Wheel Flying Fortress v7 High-capacity Battery Skeleton Box Medium Laser Assault Rifle XL Autogun Array [Rating: 16] Favorites ----------- Power Light Ion Engine Engine Light Ion Engine Propulsion Wheel Leg Aluminum Leg Wheel Wheel Utility Medium Storage Unit Storage Medium Storage Unit Weapon Assault Rifle Ballistic Gun Assault Rifle Launcher Rocket Launcher Build | -11 -10 -10 -10 -9 ------- Run | Scr Mat Min Exi Min Slots Evolved . | . . . . . Power . | . . . . . Propulsion . | . . . . . Utility . | . . . . . Weapon . | . . . . . Parts Attached 5 | 2 1 . 1 1 Power . | . . . . . Engine . | . . . . . Core . | . . . . . Reactor . | . . . . . Propulsion 2 | 2 . . . . Treads . | . . . . . Leg . | . . . . . Wheel 2 | 2 . . . . Hover . | . . . . . Flight . | . . . . . Utility 2 | . 1 . 1 . Device . | . . . . . Storage 2 | . 1 . 1 . Processor . | . . . . . Hackware . | . . . . . Protection . | . . . . . Artifact . | . . . . . Weapon 1 | . . . . 1 Energy Gun . | . . . . . Energy Cannon . | . . . . . Ballistic Gun . | . . . . . Ballistic Cannon . | . . . . . Launcher 1 | . . . . 1 Special Weapon . | . . . . . Impact Weapon . | . . . . . Slashing Weapon . | . . . . . Piercing Weapon . | . . . . . Special Melee Weapon . | . . . . . Unidentified Prototypes . | . . . . . Parts Lost 4 | . . . . 4 Power 1 | . . . . 1 Propulsion 1 | . . . . 1 Utility . | . . . . . Weapon 2 | . . . . 2 Highest Loss Streak 4 | . . . . 4 Average Slot Usage (%) 98 | . 91 100 100 98 Engine 13 | . 14 14 14 12 Wheel 28 | . 28 28 28 28 Storage 27 | . 19 28 28 28 Ballistic Gun 25 | . 28 28 28 14 Launcher 2 | . . . . 14 Naked Turns . | . . . . . Heaviest Build 49 | 11 19 19 47 49 Greatest Support 26 | 26 26 26 26 26 Greatest Overweight (x) 2 | . . . 1 2 Average Overweight (x) . | . . . . 1 Largest Inventory Capacity 16 | 6 10 10 16 16 Average Capacity 12 | 6 8 10 14 16 Most Carried 16 | 6 6 7 16 16 Average Carried 10 | 5 6 6 10 16 Final Capacity 16 | 6 10 10 16 16 Final Carried 16 | 6 6 7 16 16 Class Distribution -------------------- 100% | Mutant Dominant Class ---------------- Mutant | -10/Materials Mutant | -10/Mines Mutant | -10/Exiles Mutant | -9/Mines Resources | -11 -10 -10 -10 -9 ----------- Run | Scr Mat Min Exi Min Matter Collected 375 | 244 . 70 . 61 Remotely . | . . . . . Salvage Created 258 | 68 . 98 . 92 Parts 7 | 1 . 4 . 2 Haulers Intercepted . | . . . . . Recyclers Shooed . | . . . . . Parts Field Recycled . | . . . . . Retrieved Matter . | . . . . . Parts Self-Destructed . | . . . . . Prevented . | . . . . . Kills | -11 -10 -10 -10 -9 ------- Run | Scr Mat Min Exi Min Combat Hostiles Destroyed 8 | . . 2 . 6 Guns 2 | . . 2 . . AOE 6 | . . . . 6 Classes Destroyed 3 | 1 . 1 . 1 Recycler 1 | 1 . . . . Swarmer 4 | . . . . 4 Grunt 4 | . . 2 . 2 Best Kill Streak 4 | 1 . 2 . 4 Combat Bots Only 4 | . . 2 . 4 Max Kills in Single Turn 3 | 1 . 1 . 3 Gunslinging . | . . . . . Exploded 3 | . . . . 3 Melee . | . . . . . Uniques/NPCs Destroyed . | . . . . . Combat | -11 -10 -10 -10 -9 -------- Run | Scr Mat Min Exi Min Damage Taken 489 | . . 150 . 339 Core 79 | . . 27 . 52 Absorbed by Shields . | . . . . . Core Remaining (%) 100 | 100 . . . . Volleys Fired 20 | 4 . 10 . 6 Largest 2 | 2 . 2 . 2 Hottest 53 | 40 . 40 . 53 Shots Fired 35 | 8 . 20 . 7 Gun 30 | 8 . 20 . 2 Cannon . | . . . . . Launcher 5 | . . . . 5 Special . | . . . . . Kinetic 30 | 8 . 20 . 2 Thermal . | . . . . . Explosive 5 | . . . . 5 Electromagnetic . | . . . . . Robot Hit Streak 8 | 7 . 8 . 3 Robot Miss Streak 2 | 1 . 2 . 2 Penetration Max . | . . . . . Secondary Targets . | . . . . . Shots Hit Robots 23 | 7 . 13 . 3 Core Hits 15 | 2 . 5 . 8 Critical Hits . | . . . . . Critical Kills . | . . . . . Critical Parts Destroyed . | . . . . . Melee Attacks . | . . . . . Impact . | . . . . . Slashing . | . . . . . Piercing . | . . . . . Sneak Attacks . | . . . . . Combat Hostiles . | . . . . . Follow-up Attacks . | . . . . . Damage Inflicted 668 | 75 . 160 . 433 Guns 256 | 75 . 160 . 21 Cannons . | . . . . . Explosions 412 | . . . . 412 Melee . | . . . . . Ramming . | . . . . . Kinetic 256 | 75 . 160 . 21 Thermal . | . . . . . Explosive 412 | . . . . 412 Electromagnetic . | . . . . . Impact . | . . . . . Slashing . | . . . . . Piercing . | . . . . . Highest Corruption . | . . . . . Average Corruption . | . . . . . Corruption Purged . | . . . . . Overload Shots . | . . . . . Overflow Damage 10 | . . . . 10 Projectiles . | . . . . . Explosions 10 | . . . . 10 Melee . | . . . . . Knockbacks . | . . . . . Impact . | . . . . . Kinetic . | . . . . . Secondary . | . . . . . Self-Inflicted Damage 30 | . . . . 30 Shots 1 | . . . . 1 Rammed . | . . . . . Targets Rammed . | . . . . . Kicked . | . . . . . Crushed . | . . . . . Highest Temperature 6 | 6 . 6 . . Average Temperature 3 | 6 . 2 . . Received Heat Transfer 84 | . . 84 . . Siege Activations . | . . . . . Robots Corrupted . | . . . . . Combat Hostiles . | . . . . . Parts Fried . | . . . . . Impact Corruptions . | . . . . . Robots Melted . | . . . . . Combat Hostiles . | . . . . . Parts Melted . | . . . . . Heat Transferred . | . . . . . Parts Sabotaged . | . . . . . Parts Stolen . | . . . . . Parts Stripped . | . . . . . Power Chain Reactions . | . . . . . Missiles Intercepted . | . . . . . Alert | -11 -10 -10 -10 -9 ------- Run | Scr Mat Min Exi Min Peak Influence 155 | 5 3 50 . 155 Initial 3 | . 3 . . . Average 44 | 2 3 31 . 89 Maximum Alert Level . | . . . . . Low Security (%) 100 | 100 100 100 . 100 Level 1 . | . . . . . Level 2 . | . . . . . Level 3 . | . . . . . Level 4 . | . . . . . Level 5 . | . . . . . High Security . | . . . . . Max Security . | . . . . . Squads Dispatched 1 | . . . . 1 Investigation . | . . . . . Extermination . | . . . . . Reinforcement 1 | . . . . 1 Assault . | . . . . . Garrison . | . . . . . Intercept . | . . . . . Construction Impeded 1 | . . . . 1 Haulers Reinforced . | . . . . . Stealth | -11 -10 -10 -10 -9 --------- Run | Scr Mat Min Exi Min Distress Signals . | . . . . . Communications Jammed . | . . . . . Distress Signals . | . . . . . Times Spotted 17 | . . 2 . 15 Peak Tracking Total 12 | . . 2 . 12 Tactical Retreats . | . . . . . Traps | -11 -10 -10 -10 -9 ------- Run | Scr Mat Min Exi Min Traps Triggered . | . . . . . Indirectly . | . . . . . Trap Hack Attempts . | . . . . . Triggered . | . . . . . Disarmed . | . . . . . Reprogrammed . | . . . . . Reused . | . . . . . Traps Extracted . | . . . . . Installed . | . . . . . Triggered . | . . . . . Machines | -11 -10 -10 -10 -9 ---------- Run | Scr Mat Min Exi Min Machines Disabled 1 | . . . . 1 Max in Single Turn 1 | . . . . 1 Machines Sabotaged . | . . . . . Garrisons Compromised . | . . . . . Overloaded Fab Kills . | . . . . . Fab Network Shutdowns . | . . . . . Hacking | -11 -10 -10 -10 -9 --------- Run | Scr Mat Min Exi Min Machines Accessed 1 | . . . 1 . Terminals . | . . . . . Fabricators . | . . . . . Repair Stations . | . . . . . Recycling Units . | . . . . . Scanalyzers . | . . . . . Garrison Access . | . . . . . Total Hacks 1 | . . . 1 . Successful 1 | . . . 1 . Failed . | . . . . . Catastrophic . | . . . . . Database Lockouts . | . . . . . Manual 1 | . . . 1 . Terminals . | . . . . . Fabricators . | . . . . . Repair Stations . | . . . . . Recycling Units . | . . . . . Scanalyzers . | . . . . . Garrison Access . | . . . . . Terminal Hacks 1 | . . . 1 . EX-Prototype ID Bank 1 | . . . 1 . Fabricator Hacks . | . . . . . Repair Station Hacks . | . . . . . Recycling Unit Hacks . | . . . . . Scanalyzer . | . . . . . Garrison Access Hacks . | . . . . . Unauthorized Hacks . | . . . . . Terminals . | . . . . . Fabricators . | . . . . . Repair Stations . | . . . . . Recycling Units . | . . . . . Scanalyzers . | . . . . . Garrison Access . | . . . . . Data Cores Recovered . | . . . . . Used . | . . . . . Hacking Detections . | . . . . . Full Trace Events . | . . . . . Feedback Events . | . . . . . Feedback Blocked . | . . . . . Robot Schematics Acquired . | . . . . . Robots Built . | . . . . . Matter . | . . . . . Time . | . . . . . Total Robot Build Rating . | . . . . . Part Schematics Acquired . | . . . . . Parts Built . | . . . . . Matter . | . . . . . Time . | . . . . . Total Part Build Rating . | . . . . . Parts Repaired . | . . . . . Time . | . . . . . Parts Recycled . | . . . . . Recycled Matter . | . . . . . Retrieved Matter . | . . . . . Retrieved Components . | . . . . . Parts Scanalyzed . | . . . . . Part Schematics Acquired . | . . . . . Parts Damaged . | . . . . . Bothacking | -11 -10 -10 -10 -9 ------------ Run | Scr Mat Min Exi Min Used RIF Installer . | . . . . . Robots Hacked . | . . . . . Non-combat . | . . . . . Combat . | . . . . . Robot Hacks Applied . | . . . . . Relay Couplers Released . | . . . . . Robots Rewired . | . . . . . Allies Hacked . | . . . . . Hacks Repelled . | . . . . . Allies | -11 -10 -10 -10 -9 -------- Run | Scr Mat Min Exi Min Total Allies . | . . . . . Largest Group . | . . . . . Highest-Rated Group . | . . . . . Highest-Rated Ally . | . . . . . Total Orders . | . . . . . Ally Attacks . | . . . . . Total Damage . | . . . . . Kills . | . . . . . Allies Corrupted . | . . . . . Allies Melted . | . . . . . Intel | -11 -10 -10 -10 -9 ------- Run | Scr Mat Min Exi Min Robot Analysis Total . | . . . . . Derelict Logs Recovered 2 | . . 1 . 1 Drone Launches . | . . . . . Drone Recoveries . | . . . . . Exploration | -11 -10 -10 -10 -9 ------------- Run | Scr Mat Min Exi Min Turns Passed 638 | 46 52 135 277 128 Spaces Moved 590 | 29 57 114 277 113 Core . | . . . . . Treads . | . . . . . Legs 14 | 14 . . . . Wheels 576 | 15 57 114 277 113 Hover . | . . . . . Flight . | . . . . . Fastest Speed 90 | 90 90 90 90 100 Average Speed 96 | 104 90 90 97 100 Slowest Speed 120 | 120 90 90 100 120 Overloaded Moves . | . . . . . Propulsion Burnouts . | . . . . . Robots Hopped . | . . . . . Cave-ins Triggered . | . . . . . Exploration Rate (%) 33 | 3 16 35 70 44 Regions Visited 4 Branch Regions 3 Pre-discovered Areas . | . . . . . Known Exits Taken . | . . . . . Unknown Exits Taken 4 | 1 1 1 1 . Scrap Searched 2 | . . 1 . 1 Spaces Dug . | . . . . . Terrain Destroyed 48 | . . . . 48 Melee . | . . . . . Projectile . | . . . . . AOE 48 | . . . . 48 Terrain Rammed . | . . . . . Walls Destroyed . | . . . . . Machines Disabled . | . . . . . Actions | -11 -10 -10 -10 -9 --------- Run | Scr Mat Min Exi Min Total 624 | 36 57 126 285 120 Wait 2 | . . 2 . . Move 586 | 28 56 113 276 113 Hop . | . . . . . Pick Up 7 | 1 . 1 5 . Fast Attach 1 | . 1 . . . Attach . | . . . . . Detach . | . . . . . Swap 4 | 2 . . 1 1 Drop 4 | 1 . . 3 . Fire 20 | 4 . 10 . 6 Melee . | . . . . . Ram . | . . . . . Kick . | . . . . . Crush . | . . . . . Escape Stasis . | . . . . . Rewire . | . . . . . Trap . | . . . . . Miscellaneous . | . . . . . Route ------- -11/Scrapyard -10/Materials -10/Mines -10/Exiles -9/Mines History --------- Turn | Location | Event 10 | -11/Scrapyard | Discovered new exit (range 3) 47 | -11/Scrapyard | Entered Materials 81 | -10/Materials | Discovered new exit (range 10) 99 | -10/Materials | Entered Mines 186 | -10/Mines | Received a Rocket Launcher from a helpful Derelict 209 | -10/Mines | Learned Materials garrison access intel 231 | -10/Mines | Deemed a non-threat by the Exiles lab entrance 231 | -10/Mines | Discovered new exit (range 5) 234 | -10/Mines | Entered Exiles 256 | -10/Exiles | Met 8R-AWN 272 | -10/Exiles | Met EX-HEX 302 | -10/Exiles | Build established: Mutant 333 | -10/Exiles | Met EX-DEC 366 | -10/Exiles | Met EX-BIN 380 | -10/Exiles | Aligned with FarCom system 381 | -10/Exiles | Given EX-Vault access code 404 | -10/Exiles | Opened EX-Vault 409 | -10/Exiles | Found Skeleton Box 411 | -10/Exiles | Found XL Autogun Array 415 | -10/Exiles | Found Flying Fortress v7 436 | -10/Exiles | Warned to stay clear of 0b10 Research branches 503 | -10/Exiles | Discovered new exit (range 10) 511 | -10/Exiles | Stole three prototypes: Flying Fortress v7, Skeleton Box, XL Autogun Array 511 | -10/Exiles | Entered Mines 559 | -9/Mines | Learned 4 Materials zone layouts 607 | -9/Mines | Assembled infested the area 639 | -9/Mines | Self-destructed Last Messages --------------- squad. 00611_ Acquired 1 matter. 00613_ Searching scrap... 00613_ Found Med. Battery. 00613_ Found Imp. Aluminum Leg. 00613_ Found Lgt. Armor Plating. 00613_ Found Weight Redist. System. 00613_ Found 19 Matter. 00614_ Acquired 19 matter. 00616_ Acquired 7 matter. 00616_ U-05 Engineer builds a Wall. 00620_ U-05 Engineer lays Concrete. 00621_ U-05 Engineer builds a Wall. 00624_ Lgt. Ion Engine destroyed. 00625_ ALERT: Construction progress impeded, dispatching reinforcements to local area. 00626_ The unstable cave ceiling collapses. 00635_ Rocket Launcher destroyed. 00637_ Wheel destroyed. 00638_ Assault Rifle destroyed. Map ----- +----------------------------------------------------+ | ???### ??????? | | ?????##### ############ ??????? | | ?????????## ##??????????# ??????? | | ??????????## ##???????????# ##??????? | | ??????????## ##??????????? #???????? | | ?????????## #??????????? ???????? | | ????????## #??????????? ???????? | | ???????## ##??????????? ????????? | | ???????# ##??????????? ????????? | | ???????# ##???????????? ?????????? | | ???????# #????????????? ?????????? | | ???????## ##???????????? ??????????? | | ????????## ##???????????? ????????????? | | ?????????# ##???????????#### ? ??????????????? | | ?????????# #####?????????????????????????????? | | ??????#### ##????????????????????????????? | | ?????## #????????????????????????????? | | ????## #????????????????????????????? | | ????# ##????????????????????????????? | | ???# ## ##?????????????????????????????? | | ?# #######?????????????????????????? | | ??# # #### #?????????????????????????? | | #???#### = !## ##????????????????????????? | | #????????## !aaa #####????????????????????? | | ??????????## ##a ##### #??????????????? | | ??????????# !# a @ t #??????????????? | | ??# ### % #### ## ######??????????????? | | ??# $ #?## ##?####???????????????????? | | ??# ### ###?# #?????????????????????????? | | ???????## %#???# #?????????????????????????? | | ????????## #???# ???????????g?????????????? | | ?????????# #??? ????????????????????????? | | ?????????# ??# ????????????????????????? | | ?????????# #?# ???????????????????????? | | ????????? #?## ????????????g??????????? | | ????????? #??### ??????????????????????? | | ???????? ##?????# ??????????????????????? | | ????????# ??????? ????????????????????????? | | ????????## ##^ ??????? ?????????????????????????? | | ?????????# #?? #?????? ?????????????????????????? | | ?????????# ???# #????????????????????????????????? | | ?????????? ???? ?????????????????????????????????? | | ?????????? ??????????????????????????????????????? | | ?????????????????????????????????????????????????? | | ?????????????????????????????????????????????????? | | ?????????????????????????????????????????????????? | | ?????????????????????????????????????????????????? | | ?????????????????????????????????????????????????? | | ?????????????????????????????????????????????????? | | ?????????????????????????????????????????????????? | +----------------------------------------------------+ Best States ------------- Heat Dissipation 25 Energy Generation 10 Energy Capacity 125 Matter Stores 300 Matter Capacity 300 Sight Range 16 Terrain Scan Density 10 Evasion (%) 42 Item Schematics ----------------- None Robot Schematics ------------------ None Fabricated ------------ Nothing Alien Tech Used ----------------- None Achievements -------------- None Challenges ------------ None Game ------ Seed FusionDirtyWell Manual? 1 Play Time 00:05:43 Cumulative 562.1 hours Start 2020.10.25 @ 17:21:42 End 2020.10.25 @ 17:26:12 Sessions 1 Manual Loads 0 Difficulty Rogue Special Mode None Game No. 123 Rogue 78 Adventurer 0 Explorer 45 Win Type - Total 31 Types 2/1/5/17/0/3/1/1/1 Lore% 68 Gallery% 85 Achievement% 53 Wizard Run 0 Options --------- ASCII 0 Keyboard 0 Movement Mouse Keybinds 0 Fullscreen 2 Font 24/Smallcaps Map View 76x50 Tactical HUD 1 Map Filters NONE Filters NONE Steam 1 RUN: d78aca9b-ee92-4a2e-a0af-5a7f1b4ada5f